[Event "50th Ciudad Sevilla 2024"]
[Site "Sevilla"]
[Date "2025.01.11"]
[Round "2.3"]
[White "Agdestein, Simen"]
[Black "Rubinshtein, Kamilla"]
[Result "1-0"]
[Annotator "TA"]
[ECO "E99"]
[WhiteElo "2564"]
[BlackElo "2045"]
[PlyCount "127"]
[EventDate "2025.01.10"]
[EventType "swiss"]
[EventCountry "ESP"]
[SourceTitle "playchess.com"]
[Source "ChessBase"]
[SourceQuality "1"]
[TimeControl "90+30"]

{[%evp 22,127,57,48,56,46,57,50,50,50,55,45,49,41,52,16,59,45,62,41,45,50,51,23,50,62,190,197,238,245,233,222,267,258,257,260,433,229,228,224,224,217,263,268,267,277,290,289,383,299,329,266,301,287,389,350,393,395,570,540,537,551,604,584,580,575,567,584,658,582,559,431,483,470,477,480,498,495,510,491,781,755,848,507,640,643,601,639,655,662,697,687,703,697,694,704,851,845,789,781,921,953,843,802,5468,2731,29996,29997]} 1. d4 {[%emt 0:00:00]} Nf6 {[%emt 0:00:00]} 2. c4 {[%emt 0:00:00]} g6 {[%emt 0:00:00]} 3. Nc3 {[%emt 0:00:00]} Bg7 {[%emt 0:00:00]} 4. e4 {[%emt 0:00:00]} d6 {[%emt 0:00:00]} 5. Nf3 {[%emt 0:00:00][%cal Bg1f3,Bf3e1,Be1d3][%mdl 32]} O-O {[%emt 0:00:00]} 6. Be2 {[%emt 0:00:00]} e5 {[%emt 0:00:00]} 7. O-O {[%emt 0:00:00]} Nc6 {[%emt 0:00:00]} 8. d5 {[%emt 0:00:00]} Ne7 {[%emt 0:00:00]} 9. Ne1 {[%emt 0:00:00]} Nd7 {[%emt 0:00:00]} 10. f3 {[%emt 0:00:00]} f5 {[%emt 0:00:00]} 11. Nd3 {[%emt 0:00:00]} f4 {[%emt 0:00:00]} 12. b4 {[%emt 0:00:00]} a5 {[%emt 0:00:00]} 13. bxa5 {[%emt 0:00:00]} Rxa5 {[%emt 0:00:00]} 14. a4 {[%emt 0:00:00]} c5 {[%emt 0:00:00] White is slightly better.} 15. Bd2 {[%emt 0:00:00]} Ra6 {[%emt 0:00:00]} 16. a5 {[%emt 0:00:00]} g5 {[%emt 0:00:00]} 17. Na4 {[%emt 0:00:00]} Qe8 {[%emt 0:00:00]} 18. Rb1 {[%emt 0:00:00]} Qg6 {[%emt 0:00:00]} 19. Kh1 {[%emt 0:00:00]} Kh8 {[%emt 0:00:00]} 20. Rg1 {[%emt 0:00:00] White is more active.} Ng8 {[%emt 0:00:00][%cal Be7g8,Bg8f6,Bf6h5][%mdl 32]} 21. g3 {[%emt 0:00:00] [#] gxf4 is the strong threat.} Qh6 {[%emt 0:00:00]} 22. Bf1 {[%emt 0:00:00]} Ngf6 {[%emt 0:00:00]} 23. Nf2 {[%emt 0:00:00]} Nb8 {[%emt 0:00:00] This costs Black the game.} ({Black should play} 23... Nh5 $1 $14) 24. Nb6 {[%emt 0:00:00]} Rxb6 {[%emt 0:05:42]} 25. Rxb6 {[%emt 0:00:00]} Nh5 {[%emt 0:00:08]} 26. Kg2 {[%emt 0:00:00][%cal Bh1g2,Bg2f1,Bf1e1,Be1d1,Bd1c2,Bc2b1][%mdl 32]} fxg3 {[%emt 0:00:23]} 27. hxg3 {[%emt 0:00:00]} Nd7 {[%emt 0:03:44]} 28. Rb3 {[%emt 0:00:00]} Qg6 $2 {[%emt 0:00:51]} (28... Ndf6 29. Rh1 (29. Qc1 Nxg3 30. Bxg5 Qh5 $18) 29... Qg6) 29. Bd3 {[%emt 0:03:40]} (29. Kh2 $142) 29... Ndf6 $18 {[%emt 0:00:53]} 30. Kf1 {[%emt 0:01:06]} Bh6 {[%emt 0:03:54][%cal Bg7h6,Bh6f8,Bf8e7,Be7d8][%mdl 32]} 31. Qc1 {[%emt 0:00:53]} Rg8 {[%emt 0:01:19]} 32. Ke1 {[%emt 0:02:18]} Bf8 {[%emt 0:00:18]} 33. Kd1 {[%emt 0:01:57]} Ne8 {[%emt 0:00:31]} 34. Kc2 {[%emt 0:00:39]} Qf7 {[%emt 0:00:23]} 35. Be2 {[%emt 0:00:43]} ({Much less strong is} 35. Bxg5 Qxf3 36. Nh1 Qf7 $18) 35... Be7 {[%emt 0:00:32]} 36. Kb1 {[%emt 0:00:42]} Bd8 {[%emt 0:00:45]} 37. Qc2 {[%emt 0:03:21]} Bf6 {[%emt 0:00:28]} 38. Ng4 {[%emt 0:00:48]} Qe7 {[%emt 0:00:37]} 39. Nh6 {[%emt 0:00:40]} Rf8 {[%emt 0:00:14] [#]} (39... Rg6 {keeps fighting.} 40. Nf5 Qf7) 40. f4 $1 {[%emt 0:00:51]} Nhg7 {[%emt 0:00:39]} (40... Nxf4 41. gxf4) 41. f5 {[%emt 0:00:19]} Nc7 {[%emt 0:00:37]} 42. Rh1 {[%emt 0:00:56]} Nge8 {[%emt 0:00:17]} 43. Ng4 {[%emt 0:00:23]} Rg8 {[%emt 0:00:35]} 44. Qc1 {[%emt 0:00:16]} Rg7 {[%emt 0:00:35]} 45. Rh6 {[%emt 0:00:25][%cal Oa5a6] Strongly threatening a6!} Qf8 {[%emt 0:00:26]} 46. Bd3 {[%emt 0:00:48]} Be7 {[%emt 0:00:27]} 47. Rb2 {[%emt 0:00:50]} Nf6 {[%emt 0:00:28]} 48. Nxf6 {[%emt 0:00:44]} Bxf6 {[%emt 0:00:02]} 49. Be3 {[%emt 0:00:30]} Ne8 {[%emt 0:00:34]} 50. Rbh2 {[%emt 0:00:37]} Qe7 {[%emt 0:00:15]} (50... Bd8 $142 51. Rg6 Bd7 52. Bxg5 Bxg5 53. Qxg5 Qe7) 51. Be2 {[%emt 0:01:11]} g4 {[%emt 0:01:13]} 52. Rg6 {[%emt 0:00:57]} Kg8 {[%emt 0:00:20]} 53. Rxg4 {[%emt 0:00:13]} Rxg4 {[%emt 0:00:46]} 54. Bxg4 {[%emt 0:00:02]} Qc7 {[%emt 0:00:10]} 55. Bd2 {[%emt 0:00:46]} b6 {[%emt 0:00:11][%cal Bb7b6,Bb6a5,Ba5a4][%mdl 32]} 56. Bh5 {[%emt 0:01:08][%cal Bg4h5,Bh5e2,Be2d1][%mdl 32]} Ng7 {[%emt 0:00:18]} 57. Be2 {[%emt 0:00:36]} bxa5 {[%emt 0:00:12]} 58. g4 {[%emt 0:00:10][%cal Bg3g4,Bg4g5][%mdl 32]} Qb6+ {[%emt 0:01:07]} 59. Ka2 {[%emt 0:00:22]} a4 {[%emt 0:00:13]} 60. Bd1 {[%emt 0:00:47]} Bd8 {[%emt 0:01:20]} 61. g5 {[%emt 0:00:18]} Qb7 {[%emt 0:00:28]} 62. Qa3 {[%emt 0:00:32][%cal Oa3h3] Black must now prevent Qh3!} Bd7 {[%emt 0:00:34]} 63. Qh3 {[%emt 0:00:25]} Qa6 {[%emt 0:00:30]} 64. Qxh7+ {[%emt 0:00:29] Weighted Error Value: White=0.26 (precise) /Black=0.50.  Mistake:       	White=1     	Black=4      Inaccurate:     	White=2     	Black=4      OK:         	White=16    	Black=11     Best:        	White=1     	Black=2} 1-0

[Event "50th Ciudad Sevilla 2024"]
[Site "Sevilla"]
[Date "2025.01.11"]
[Round "2.4"]
[White "Ordonez Torres, Maria Del Carmen"]
[Black "Li, Di"]
[Result "0-1"]
[Annotator "RC"]
[ECO "B00"]
[WhiteElo "2046"]
[BlackElo "2544"]
[PlyCount "106"]
[EventDate "2025.01.10"]
[EventType "swiss"]
[EventCountry "ESP"]
[SourceTitle "playchess.com"]
[Source "ChessBase"]
[SourceQuality "1"]
[TimeControl "90+30"]

1. e4 {[%emt 0:00:00]} Nc6 {[%emt 0:00:00]} 2. Nf3 {[%emt 0:00:00]} d6 {[%emt 0:00:00]} 3. d4 {[%emt 0:00:00]} Nf6 {[%emt 0:00:00]} 4. Nc3 {[%emt 0:00:00]} a6 {[%emt 0:00:00]} 5. Bd3 {[%emt 0:00:00]} g6 {[%emt 0:00:00]} 6. d5 {[%emt 0:00:00]} Nb4 {[%emt 0:00:00]} 7. Be2 {[%emt 0:00:00]} a5 {[%emt 0:00:00]} 8. O-O {[%emt 0:00:00]} Bg7 {[%emt 0:00:00]} 9. Re1 {[%emt 0:00:00]} O-O {[%emt 0:00:00]} 10. Be3 {[%emt 0:00:00]} e6 {[%emt 0:00:00]} 11. a3 {[%emt 0:00:00]} Na6 {[%emt 0:00:00]} 12. Bf1 {[%emt 0:00:00]} Re8 {[%emt 0:00:00]} 13. h3 {[%emt 0:00:00]} exd5 {[%emt 0:00:00]} 14. exd5 {[%emt 0:00:00]} Bd7 {[%emt 0:00:00]} 15. Qd2 {[%emt 0:00:00]} Nc5 {[%emt 0:00:00]} 16. Bd4 {[%emt 0:00:00]} Nce4 {[%emt 0:00:00]} 17. Nxe4 {[%emt 0:00:00]} Nxe4 {[%emt 0:00:00]} 18. Qd1 {[%emt 0:00:00]} Nf6 {[%emt 0:00:00]} 19. Qd2 {[%emt 0:00:00]} Ne4 {[%emt 0:00:00]} 20. Qd1 {[%emt 0:00:00]} Bf6 {[%emt 0:00:00]} 21. a4 {[%emt 0:00:00]} c5 {[%emt 0:00:00]} 22. dxc6 {[%emt 0:00:00]} bxc6 {[%emt 0:00:00]} 23. Bxf6 {[%emt 0:00:00]} Qxf6 {[%emt 0:00:00]} 24. Qd4 {[%emt 0:00:00]} Qxd4 {[%emt 0:00:00]} 25. Nxd4 {[%emt 0:00:00]} Nc5 {[%emt 0:00:00]} 26. b3 {[%emt 0:00:00]} Kf8 {[%emt 0:00:00]} 27. f3 {[%emt 0:00:00]} Re5 {[%emt 0:00:00]} 28. Bc4 {[%emt 0:00:00]} g5 {[%emt 0:00:00]} 29. Kf2 {[%emt 0:00:00]} f6 {[%emt 0:00:00]} 30. Rad1 {[%emt 0:00:00]} Ke7 {[%emt 0:00:00]} 31. Rd2 {[%emt 0:00:00]} Rb8 {[%emt 0:00:00]} 32. Rdd1 {[%emt 0:02:29]} d5 {[%emt 0:00:00]} 33. Be2 {[%emt 0:00:31]} Kd6 {[%emt 0:00:00]} 34. Bf1 {[%emt 0:03:13]} h5 {[%emt 0:00:00]} 35. g3 {[%emt 0:00:44]} h4 {[%emt 0:00:00]} 36. g4 {[%emt 0:00:51]} Rb4 {[%emt 0:00:00]} 37. Re2 {[%emt 0:06:33]} Ne6 {[%emt 0:00:00]} 38. Nxe6 {[%emt 0:02:22]} Bxe6 {[%emt 0:00:00]} 39. Rxe5 {[%emt 0:00:34]} fxe5 {[%emt 0:00:00]} 40. Bd3 {[%emt 0:00:52]} Rf4 {[%emt 0:00:00]} 41. Ke3 {[%emt 0:00:46]} Kc5 {[%emt 0:00:00]} 42. Bg6 {[%emt 0:00:34]} Kb4 {[%emt 0:00:00]} 43. Rd3 {[%emt 0:00:52]} d4+ {[%emt 0:00:00]} 44. Ke2 {[%emt 0:00:31]} Bd5 {[%emt 0:00:00]} 45. Be8 {[%emt 0:00:43]} c5 {[%emt 0:00:00]} 46. c4 {[%emt 0:01:38]} e4 {[%emt 0:00:00]} 47. cxd5 {[%emt 0:00:52]} exd3+ {[%emt 0:00:00]} 48. Kxd3 {[%emt 0:00:02]} Rxf3+ {[%emt 0:00:00]} 49. Kd2 {[%emt 0:00:40]} Rf8 {[%emt 0:00:00]} 50. Bb5 {[%emt 0:00:27]} Kxb3 {[%emt 0:00:00]} 51. Kd3 {[%emt 0:00:03]} Rf3+ {[%emt 0:00:00]} 52. Ke4 {[%emt 0:00:15]} Re3+ {[%emt 0:00:00]} 53. Kf5 {[%emt 0:00:03]} d3 {[%emt 0:00:00]} 0-1

[Event "50th Ciudad Sevilla 2024"]
[Site "Sevilla"]
[Date "2025.01.11"]
[Round "2.5"]
[White "Makhnev, Denis"]
[Black "Morales Araujo, Francisco Javier"]
[Result "1-0"]
[Annotator "RC"]
[ECO "A80"]
[WhiteElo "2532"]
[BlackElo "2036"]
[PlyCount "47"]
[EventDate "2025.01.10"]
[EventType "swiss"]
[EventCountry "ESP"]
[SourceTitle "playchess.com"]
[Source "ChessBase"]
[SourceQuality "1"]
[TimeControl "90+30"]

1. d4 {[%emt 0:00:00]} f5 {[%emt 0:00:00]} 2. Nc3 {[%emt 0:00:00]} Nf6 {[%emt 0:00:00]} 3. Bg5 {[%emt 0:00:00]} d5 {[%emt 0:00:00]} 4. f3 {[%emt 0:00:00]} e6 {[%emt 0:00:00]} 5. e4 {[%emt 0:00:00]} Be7 {[%emt 0:00:00]} 6. exf5 {[%emt 0:00:00]} exf5 {[%emt 0:00:00]} 7. Qd2 {[%emt 0:00:00]} O-O {[%emt 0:00:00]} 8. O-O-O {[%emt 0:00:00]} c6 {[%emt 0:00:00]} 9. Bd3 {[%emt 0:00:00]} b5 {[%emt 0:00:00]} 10. h3 {[%emt 0:00:00]} Nh5 {[%emt 0:00:00]} 11. Bxe7 {[%emt 0:00:00]} Qxe7 {[%emt 0:00:00]} 12. g4 {[%emt 0:00:00]} Ng3 {[%emt 0:00:00]} 13. Rh2 {[%emt 0:00:00]} f4 {[%emt 0:00:00]} 14. Nce2 {[%emt 0:00:00]} Nxe2+ {[%emt 0:00:00]} 15. Rxe2 {[%emt 0:00:00]} Qd6 {[%emt 0:00:00]} 16. Rde1 {[%emt 0:00:00]} Na6 {[%emt 0:00:00]} 17. a3 {[%emt 0:00:00]} b4 {[%emt 0:00:00]} 18. Bxa6 {[%emt 0:00:00]} bxa3 {[%emt 0:00:00]} 19. Qa5 {[%emt 0:00:00]} axb2+ {[%emt 0:00:00]} 20. Kb1 {[%emt 0:00:00]} Bxa6 {[%emt 0:00:00]} 21. Re6 {[%emt 0:00:00]} Qd7 {[%emt 0:00:00]} 22. Qxa6 {[%emt 0:00:00]} Rae8 {[%emt 0:00:00]} 23. Qe2 {[%emt 0:00:00]} Rb8 {[%emt 0:00:00]} 24. Re7 {[%emt 0:00:00]} 1-0

[Event "50th Ciudad Sevilla 2024"]
[Site "Sevilla"]
[Date "2025.01.11"]
[Round "2.6"]
[White "Delgado Serrano, Angel"]
[Black "Vignesh N R"]
[Result "0-1"]
[Annotator "RC"]
[ECO "A05"]
[WhiteElo "2035"]
[BlackElo "2523"]
[PlyCount "100"]
[EventDate "2025.01.10"]
[EventType "swiss"]
[EventCountry "ESP"]
[SourceTitle "playchess.com"]
[Source "ChessBase"]
[SourceQuality "1"]
[TimeControl "90+30"]

1. Nf3 {[%emt 0:00:00]} Nf6 {[%emt 0:00:00]} 2. g3 {[%emt 0:00:00]} d5 {[%emt 0:00:00]} 3. Bg2 {[%emt 0:00:00]} c6 {[%emt 0:00:00]} 4. O-O {[%emt 0:00:00]} Bf5 {[%emt 0:00:00]} 5. c4 {[%emt 0:00:00]} e6 {[%emt 0:00:00]} 6. d3 {[%emt 0:00:00]} dxc4 {[%emt 0:00:00]} 7. dxc4 {[%emt 0:00:00]} Nbd7 {[%emt 0:00:00]} 8. Nc3 {[%emt 0:00:00]} h6 {[%emt 0:00:00]} 9. b3 {[%emt 0:00:00]} Be7 {[%emt 0:00:00]} 10. Bb2 {[%emt 0:00:00]} O-O {[%emt 0:00:00]} 11. Qd2 {[%emt 0:00:00]} Qc7 {[%emt 0:00:00]} 12. Rad1 {[%emt 0:00:00]} e5 {[%emt 0:00:00]} 13. Nh4 {[%emt 0:00:00]} Bh7 {[%emt 0:00:00]} 14. Bh3 {[%emt 0:00:00]} Rad8 {[%emt 0:00:00]} 15. Bf5 {[%emt 0:00:00]} Rfe8 {[%emt 0:00:00]} 16. Qc2 {[%emt 0:00:00]} Bxf5 {[%emt 0:00:00]} 17. Nxf5 {[%emt 0:00:00]} Bf8 {[%emt 0:00:00]} 18. Ne4 {[%emt 0:00:00]} Nxe4 {[%emt 0:00:00]} 19. Qxe4 {[%emt 0:00:00]} g6 {[%emt 0:00:00]} 20. Ne3 {[%emt 0:00:00]} Bg7 {[%emt 0:00:00]} 21. Qc2 {[%emt 0:00:00]} h5 {[%emt 0:00:00]} 22. h3 {[%emt 0:00:00]} Nc5 {[%emt 0:00:00]} 23. Rxd8 {[%emt 0:00:00]} Qxd8 {[%emt 0:00:00]} 24. Rd1 {[%emt 0:00:00]} Qc8 {[%emt 0:00:00]} 25. Kh2 {[%emt 0:00:00]} Ne6 {[%emt 0:00:00]} 26. Ng2 {[%emt 0:00:00]} Ng5 {[%emt 0:00:00]} 27. h4 {[%emt 0:00:00]} Qh3+ {[%emt 0:00:00]} 28. Kg1 {[%emt 0:00:00]} Nh7 {[%emt 0:00:00]} 29. Ne3 {[%emt 0:00:00]} Bf8 {[%emt 0:00:00]} 30. Qe4 {[%emt 0:00:00]} Nf6 {[%emt 0:00:00]} 31. Qf3 {[%emt 0:00:00]} Qe6 {[%emt 0:00:00]} 32. Nc2 {[%emt 0:00:00]} Ng4 {[%emt 0:00:00]} 33. e3 {[%emt 0:00:15]} e4 {[%emt 0:00:00]} 34. Qe2 {[%emt 0:00:32]} c5 {[%emt 0:00:00]} 35. Rd5 {[%emt 0:04:25]} b6 {[%emt 0:00:00]} 36. Qd2 {[%emt 0:02:01]} Bg7 {[%emt 0:00:00]} 37. Bxg7 {[%emt 0:02:07]} Kxg7 {[%emt 0:00:00]} 38. Kg2 {[%emt 0:01:38]} Nf6 {[%emt 0:00:00]} 39. Rd6 {[%emt 0:01:41]} Qf5 {[%emt 0:00:00]} 40. Ne1 {[%emt 0:00:31]} g5 {[%emt 0:00:00]} 41. hxg5 {[%emt 0:01:31]} Qxg5 {[%emt 0:00:00]} 42. Kf1 {[%emt 0:01:23]} h4 {[%emt 0:00:00]} 43. Nc2 {[%emt 0:02:11]} hxg3 {[%emt 0:00:00]} 44. fxg3 {[%emt 0:00:04]} Rh8 {[%emt 0:00:00]} 45. Qg2 {[%emt 0:03:12]} Qe5 {[%emt 0:00:00]} 46. Rd2 {[%emt 0:00:19]} Ng4 {[%emt 0:00:00]} 47. Qg1 {[%emt 0:00:50]} Qf6+ {[%emt 0:00:00]} 48. Ke1 {[%emt 0:00:20]} Ne5 {[%emt 0:00:00]} 49. Qg2 {[%emt 0:01:15]} Nf3+ {[%emt 0:00:00]} 50. Kd1 {[%emt 0:00:04]} Qb2 {[%emt 0:00:00]} 0-1

[Event "50th Ciudad Sevilla 2024"]
[Site "Sevilla"]
[Date "2025.01.11"]
[Round "2.7"]
[White "Kvaloy, Aksel Bu"]
[Black "Iugina, Mariia"]
[Result "1-0"]
[Annotator "RC"]
[ECO "C02"]
[WhiteElo "2487"]
[BlackElo "2032"]
[PlyCount "85"]
[EventDate "2025.01.10"]
[EventType "swiss"]
[EventCountry "ESP"]
[SourceTitle "playchess.com"]
[Source "ChessBase"]
[SourceQuality "1"]
[TimeControl "90+30"]

1. e4 {[%emt 0:00:00]} e6 {[%emt 0:00:00]} 2. d4 {[%emt 0:00:00]} d5 {[%emt 0:00:00]} 3. e5 {[%emt 0:00:00]} c5 {[%emt 0:00:00]} 4. c3 {[%emt 0:00:00]} Nc6 {[%emt 0:00:00]} 5. Nf3 {[%emt 0:00:00]} Qb6 {[%emt 0:00:00]} 6. a3 {[%emt 0:00:00]} c4 {[%emt 0:00:00]} 7. Nbd2 {[%emt 0:00:00]} Na5 {[%emt 0:00:00]} 8. Rb1 {[%emt 0:00:00]} Bd7 {[%emt 0:00:00]} 9. h4 {[%emt 0:00:00]} Ne7 {[%emt 0:00:00]} 10. h5 {[%emt 0:00:00]} h6 {[%emt 0:00:00]} 11. b4 {[%emt 0:00:00]} cxb3 {[%emt 0:00:00]} 12. Nxb3 {[%emt 0:00:00]} Ba4 {[%emt 0:00:00]} 13. Nxa5 {[%emt 0:00:00]} Bxd1 {[%emt 0:00:00]} 14. Rxb6 {[%emt 0:00:00]} axb6 {[%emt 0:00:00]} 15. Nxb7 {[%emt 0:00:00]} Ba4 {[%emt 0:00:00]} 16. Nd6+ {[%emt 0:00:00]} Kd7 {[%emt 0:00:00]} 17. Nxf7 {[%emt 0:00:00]} Rg8 {[%emt 0:00:00]} 18. Bd3 {[%emt 0:00:00]} g5 {[%emt 0:00:00]} 19. hxg6 {[%emt 0:00:00]} Nxg6 {[%emt 0:00:00]} 20. Nxh6 {[%emt 0:00:00]} Rg7 {[%emt 0:00:00]} 21. Ng4 {[%emt 0:00:00]} Kc6 {[%emt 0:00:00]} 22. Rh6 {[%emt 0:00:00]} Nf4 {[%emt 0:00:00]} 23. Bxf4 {[%emt 0:00:00]} Rxg4 {[%emt 0:00:00]} 24. Rxe6+ {[%emt 0:00:00]} Kb7 {[%emt 0:00:00]} 25. Rf6 {[%emt 0:00:00]} Re8 {[%emt 0:00:00]} 26. Rf7+ {[%emt 0:00:00]} Ka8 {[%emt 0:00:00]} 27. Ba6 {[%emt 0:00:00]} Bc6 {[%emt 0:01:22]} 28. g3 {[%emt 0:00:00]} Bxa3 {[%emt 0:04:04]} 29. Rf6 {[%emt 0:00:00]} Ba4 {[%emt 0:03:26]} 30. Rxb6 {[%emt 0:00:00]} Ka7 {[%emt 0:00:34]} 31. Rf6 {[%emt 0:00:00]} Bb2 {[%emt 0:02:02]} 32. Kd2 {[%emt 0:00:00]} Bb3 {[%emt 0:02:33]} 33. Ng1 {[%emt 0:00:00]} Rg7 {[%emt 0:00:27]} 34. Ne2 {[%emt 0:00:00]} Ree7 {[%emt 0:03:13]} 35. Bd3 {[%emt 0:00:00]} Kb7 {[%emt 0:00:20]} 36. Bh6 {[%emt 0:00:00]} Rg8 {[%emt 0:00:12]} 37. Bf8 {[%emt 0:00:00]} Re8 {[%emt 0:00:32]} 38. Bc5 {[%emt 0:00:00]} Rb8 {[%emt 0:00:35]} 39. Rf7+ {[%emt 0:00:00]} Kc6 {[%emt 0:00:17]} 40. Rf6+ {[%emt 0:00:00]} Kb7 {[%emt 0:01:09]} 41. Bb5 {[%emt 0:00:00]} Rg7 {[%emt 0:00:59]} 42. e6 {[%emt 0:00:00]} Kc7 {[%emt 0:00:15]} 43. Rf7+ {[%emt 0:00:00]} 1-0

[Event "50th Ciudad Sevilla 2024"]
[Site "Sevilla"]
[Date "2025.01.11"]
[Round "2.8"]
[White "Lopez Cueto, Julio"]
[Black "Mitusov, Semen"]
[Result "0-1"]
[Annotator "RC"]
[ECO "B94"]
[WhiteElo "2030"]
[BlackElo "2463"]
[PlyCount "76"]
[EventDate "2025.01.10"]
[EventType "swiss"]
[EventCountry "ESP"]
[SourceTitle "playchess.com"]
[Source "ChessBase"]
[SourceQuality "1"]
[TimeControl "90+30"]

1. e4 {[%emt 0:00:00]} c5 {[%emt 0:00:00]} 2. Nf3 {[%emt 0:00:00]} d6 {[%emt 0:00:00]} 3. d4 {[%emt 0:00:00]} cxd4 {[%emt 0:00:00]} 4. Nxd4 {[%emt 0:00:00]} Nf6 {[%emt 0:00:00]} 5. Nc3 {[%emt 0:00:00]} a6 {[%emt 0:00:00]} 6. Bg5 {[%emt 0:00:00]} Nbd7 {[%emt 0:00:00]} 7. f4 {[%emt 0:00:00]} Qc7 {[%emt 0:00:00]} 8. Qd2 {[%emt 0:00:00]} h6 {[%emt 0:00:00]} 9. Bh4 {[%emt 0:00:00]} e6 {[%emt 0:00:00]} 10. O-O-O {[%emt 0:00:00]} Be7 {[%emt 0:00:00]} 11. Nf3 {[%emt 0:00:00]} b5 {[%emt 0:00:00]} 12. a3 {[%emt 0:00:00]} Bb7 {[%emt 0:00:00]} 13. Bd3 {[%emt 0:00:00]} Nc5 {[%emt 0:00:00]} 14. Rhe1 {[%emt 0:00:00]} Rd8 {[%emt 0:00:00]} 15. Kb1 {[%emt 0:00:00]} O-O {[%emt 0:00:00]} 16. Qe2 {[%emt 0:00:00]} d5 {[%emt 0:00:00]} 17. exd5 {[%emt 0:00:00]} Nxd5 {[%emt 0:00:00]} 18. Nxd5 {[%emt 0:00:00]} Rxd5 {[%emt 0:00:00]} 19. Bxe7 {[%emt 0:00:00]} Qxe7 {[%emt 0:00:00]} 20. Ne5 {[%emt 0:00:00]} Rfd8 {[%emt 0:00:00]} 21. Qg4 {[%emt 0:00:00]} Nxd3 {[%emt 0:00:00]} 22. Rxd3 {[%emt 0:00:00]} Rxd3 {[%emt 0:00:00]} 23. Nxd3 {[%emt 0:00:00]} Qc7 {[%emt 0:00:00]} 24. g3 {[%emt 0:00:00]} Rc8 {[%emt 0:00:00]} 25. Qd1 {[%emt 0:00:00]} a5 {[%emt 0:00:00]} 26. Re5 {[%emt 0:00:00]} Bd5 {[%emt 0:00:00]} 27. Qe2 {[%emt 0:02:30]} Qc4 {[%emt 0:00:00]} 28. Nc1 {[%emt 0:01:28]} Qc5 {[%emt 0:00:00]} 29. Re3 {[%emt 0:04:13]} Qd4 {[%emt 0:00:00]} 30. Qd3 {[%emt 0:01:07]} Qa4 {[%emt 0:00:00]} 31. f5 {[%emt 0:03:47]} b4 {[%emt 0:00:00]} 32. fxe6 {[%emt 0:01:16]} Bxe6 {[%emt 0:00:00]} 33. Qe2 {[%emt 0:02:49]} Bf5 {[%emt 0:00:00]} 34. b3 {[%emt 0:00:44]} Qc6 {[%emt 0:00:00]} 35. Nd3 {[%emt 0:00:41]} bxa3 {[%emt 0:00:00]} 36. Re5 {[%emt 0:00:25]} Bxd3 {[%emt 0:00:00]} 37. Qxd3 {[%emt 0:00:05]} Qh1+ {[%emt 0:00:00]} 38. Ka2 {[%emt 0:00:35]} Qc1 {[%emt 0:00:00]} 0-1

[Event "50th Ciudad Sevilla 2024"]
[Site "Sevilla"]
[Date "2025.01.11"]
[Round "2.9"]
[White "Urazayev, Arystanbek"]
[Black "Silva, Mariana"]
[Result "1-0"]
[Annotator "RC"]
[ECO "B15"]
[WhiteElo "2448"]
[BlackElo "2027"]
[PlyCount "65"]
[EventDate "2025.01.10"]
[EventType "swiss"]
[EventCountry "ESP"]
[SourceTitle "playchess.com"]
[Source "ChessBase"]
[SourceQuality "1"]
[TimeControl "90+30"]

1. e4 {[%emt 0:00:00]} c6 {[%emt 0:00:00]} 2. d4 {[%emt 0:00:00]} d5 {[%emt 0:00:00]} 3. Nd2 {[%emt 0:00:00]} dxe4 {[%emt 0:00:00]} 4. Nxe4 {[%emt 0:00:00]} Nf6 {[%emt 0:00:00]} 5. Nxf6+ {[%emt 0:00:00]} exf6 {[%emt 0:00:00]} 6. Be3 {[%emt 0:00:00]} Bd6 {[%emt 0:00:00]} 7. Bd3 {[%emt 0:00:00]} O-O {[%emt 0:00:00]} 8. Ne2 {[%emt 0:00:00]} Re8 {[%emt 0:00:00]} 9. O-O {[%emt 0:00:00]} Nd7 {[%emt 0:00:00]} 10. c4 {[%emt 0:00:00]} Nf8 {[%emt 0:00:00]} 11. Qd2 {[%emt 0:00:00]} Bg4 {[%emt 0:00:00]} 12. Ng3 {[%emt 0:00:00]} g6 {[%emt 0:00:00]} 13. Rae1 {[%emt 0:00:00]} h5 {[%emt 0:00:00]} 14. Ne4 {[%emt 0:00:00]} Bc7 {[%emt 0:00:00]} 15. Nc3 {[%emt 0:00:00]} Rc8 {[%emt 0:00:00]} 16. f4 {[%emt 0:00:00]} Bb8 {[%emt 0:00:00]} 17. Kh1 {[%emt 0:00:00]} Qd7 {[%emt 0:00:00]} 18. Ne4 {[%emt 0:00:00]} Nh7 {[%emt 0:00:00]} 19. Nc5 {[%emt 0:00:00]} Qc7 {[%emt 0:00:00]} 20. h3 {[%emt 0:00:00]} Bd7 {[%emt 0:00:00]} 21. Qb4 {[%emt 0:00:00]} b6 {[%emt 0:00:00]} 22. Na6 {[%emt 0:00:00]} Qd6 {[%emt 0:00:00]} 23. Qc3 {[%emt 0:00:00]} f5 {[%emt 0:00:22]} 24. c5 {[%emt 0:00:00]} Qf8 {[%emt 0:02:57]} 25. Nxb8 {[%emt 0:00:00]} Rxb8 {[%emt 0:00:04]} 26. d5 {[%emt 0:00:00]} cxd5 {[%emt 0:00:32]} 27. b4 {[%emt 0:00:00]} a5 {[%emt 0:06:37]} 28. cxb6 {[%emt 0:00:00]} axb4 {[%emt 0:01:22]} 29. Qc7 {[%emt 0:00:00]} Qe7 {[%emt 0:01:57]} 30. Bc5 {[%emt 0:00:00]} Qd8 {[%emt 0:00:28]} 31. Rxe8+ {[%emt 0:00:00]} Qxe8 {[%emt 0:01:14]} 32. Bd6 {[%emt 0:00:00]} Rc8 {[%emt 0:00:44]} 33. b7 {[%emt 0:00:27]} 1-0